bitfinex/quotes_BTCUSD_20250410
["timestamp","ask_amount","ask_price","bid_price","bid_amount"]
[1744268305301,0.24883602,82088.0,82087.0,0.10892631]
[1744268305507,0.243644,82087.0,82084.0,0.38413]
[1744268305707,0.24883602,82088.0,82085.0,0.03802798]
[1744268306008,0.24883602,82088.0,82084.0,0.14048]
[1744268306009,0.255831,82085.0,82084.0,0.14048]
[1744268306572,0.26094837,82085.0,82084.0,0.14048]
[1744268306984,0.24876637,82085.0,82084.0,0.14048]
[1744268307896,0.243654,82084.0,82081.0,0.243661]
[1744268308297,0.00512437,82083.0,82082.0,0.243657]
[1744268308516,0.243652,82084.0,82082.0,0.243657]
[1744268308675,0.00512437,82083.0,82082.0,0.243657]
[1744268309307,0.243649,82085.0,82082.0,0.243657]
[1744268309510,0.00512437,82083.0,82082.0,0.243657]
[1744268309728,0.243649,82085.0,82082.0,0.243657]
[1744268309933,0.00512437,82083.0,82082.0,0.243657]
[1744268310136,0.243649,82085.0,82082.0,0.243657]
[1744268310305,0.00512437,82083.0,82082.0,0.243657]
[1744268310531,0.24878137,82083.0,82080.0,0.243664]
[1744268310737,0.243664,82081.0,82078.0,0.24367]
[1744268311003,0.00512786,82082.0,82079.0,0.243667]
[1744268311152,0.00513485,82080.0,82079.0,0.243667]
[1744268311354,0.01192188,82083.0,82081.0,0.243661]
[1744268311562,0.243653,82084.0,82082.0,0.243658]
[1744268311734,0.243653,82084.0,82081.0,0.243661]
[1744268312246,0.243656,82083.0,82081.0,0.243661]
[1744268313195,0.24365,82085.0,82081.0,0.243661]
[1744268313408,0.00891457,82090.0,82089.0,0.243638]
[1744268313626,0.00016611,82095.0,82094.0,0.255804]
[1744268313971,0.00016611,82095.0,82094.0,0.243623]
[1744268314342,0.01213661,82095.0,82093.0,0.012181]
[1744268314546,0.01213661,82095.0,82094.0,0.243623]
[1744268314766,0.00016611,82095.0,82094.0,0.243623]
[1744268314966,0.00016611,82095.0,82093.0,0.243625]
[1744268315159,0.00016611,82095.0,82094.0,0.243623]
[1744268315482,0.00016611,82095.0,82093.0,0.243625]
[1744268316396,0.24378611,82095.0,82092.0,0.255809]
[1744268316593,0.24378611,82095.0,82092.0,0.243628]
[1744268316833,0.243623,82094.0,82092.0,0.243628]
[1744268319593,0.243623,82094.0,82091.0,0.255812]
[1744268319754,0.243623,82094.0,82091.0,0.243631]
[1744268321168,0.243627,82093.0,82090.0,0.243634]
[1744268321357,0.243627,82093.0,82091.0,0.243631]
[1744268321521,0.00016611,82095.0,82092.0,0.243629]
[1744268321756,0.243626,82093.0,82091.0,0.243632]
[1744268322318,0.243626,82093.0,82090.0,0.243626]
[1744268322592,0.243626,82093.0,82089.0,0.12055382]
[1744268322803,0.243652,82084.0,82073.0,0.096]
[1744268323018,0.255834,82084.0,82073.0,0.060884]
[1744268323437,0.255834,82084.0,82073.0,0.0487]
[1744268323625,0.255834,82084.0,82075.0,0.243678]
[1744268323841,0.255834,82084.0,82076.0,0.243675]
[1744268324077,0.26094169,82084.0,82076.0,0.243675]
[1744268324661,0.26094169,82084.0,82073.0,0.0487]
[1744268324833,0.26094169,82084.0,82074.0,0.012184]
[1744268325030,0.26094169,82084.0,82075.0,0.243678]
[1744268325258,0.26094169,82084.0,82073.0,0.012184]
[1744268326030,0.26094169,82084.0,82075.0,0.243678]
[1744268326393,0.33409169,82084.0,82075.0,0.243678]
[1744268327662,0.33409169,82084.0,82073.0,0.012184]
[1744268328012,0.243671,82078.0,82075.0,0.243678]
[1744268328222,0.243671,82078.0,82075.0,0.36423182]
[1744268328418,0.00513216,82077.0,82075.0,0.36423182]
[1744268328616,0.243671,82078.0,82075.0,0.36423182]
[1744268328815,0.243671,82078.0,82076.0,0.243675]
[1744268329016,0.00513216,82077.0,82076.0,0.255858]
[1744268329414,0.243651,82085.0,82082.0,0.243656]
[1744268329856,0.243651,82085.0,82083.0,0.243655]
[1744268330091,0.24365,82085.0,82082.0,0.243656]
[1744268330426,0.243654,82084.0,82082.0,0.243656]
[1744268331277,0.24365,82085.0,82082.0,0.243656]
[1744268332021,0.243653,82084.0,82082.0,0.243656]
[1744268332216,0.243656,82083.0,82081.0,0.243661]
[1744268332421,0.243653,82084.0,82081.0,0.243661]
[1744268332789,0.24365,82085.0,82082.0,0.243658]
[1744268333138,0.243653,82084.0,82081.0,0.243661]
[1744268333300,0.243657,82083.0,82081.0,0.243661]
[1744268336038,0.243653,82084.0,82081.0,0.243661]
[1744268336176,0.243653,82084.0,82082.0,0.243658]
[1744268336380,0.243653,82084.0,82081.0,0.243661]
[1744268336819,0.243653,82084.0,82082.0,0.243656]
[1744268337035,0.243653,82084.0,82081.0,0.243661]
[1744268337239,0.243656,82083.0,82081.0,0.243661]
[1744268337445,0.243656,82083.0,82080.0,0.255847]
[1744268337642,0.243656,82083.0,82080.0,0.37640082]
[1744268338580,0.243653,82084.0,82081.0,0.243661]
[1744268338990,0.24874845,82083.0,82081.0,0.243661]
[1744268339170,0.24874845,82083.0,82080.0,0.13273682]
[1744268339171,0.243661,82082.0,82080.0,0.36421782]
[1744268339322,0.24874845,82083.0,82080.0,0.12055382]
[1744268339554,0.243661,82082.0,82080.0,0.36421782]
[1744268339751,0.00509494,82081.0,82080.0,0.36421782]
[1744268340118,0.00496581,82081.0,82080.0,0.36421782]
[1744268340498,0.243657,82083.0,82080.0,0.36421782]
[1744268341055,0.00507342,82082.0,82080.0,0.36421782]
[1744268343705,0.24873342,82082.0,82080.0,0.36421782]
[1744268344108,0.00507342,82082.0,82081.0,0.243661]
[1744268344282,0.00507342,82082.0,82080.0,0.36421782]
[1744268344515,0.24873142,82082.0,82080.0,0.12055382]
[1744268344682,0.00507342,82082.0,82081.0,0.243661]
[1744268345042,0.243646,82087.0,82081.0,0.012183]
[1744268345230,0.328958,82093.0,82087.0,0.012182]
[1744268345402,0.243626,82093.0,82088.0,0.12055382]
[1744268345606,0.243629,82092.0,82089.0,0.243635]
[1744268346012,0.35234711,82095.0,82088.0,0.36418882]
[1744268346013,0.00016611,82095.0,82094.0,0.243623]
[1744268346223,0.00016611,82095.0,82094.0,0.37635782]
[1744268346864,0.00016611,82095.0,82093.0,0.14048]
[1744268347084,0.00016611,82095.0,82094.0,0.255804]
[1744268347247,0.00016611,82095.0,82094.0,0.243623]
[1744268347449,0.00016611,82095.0,82092.0,0.396289]
[1744268347663,0.00016611,82095.0,82093.0,0.243624]
[1744268348018,0.00016611,82095.0,82094.0,0.255804]
[1744268348838,0.00520267,82095.0,82094.0,0.255804]
[1744268349934,0.00016611,82095.0,82094.0,0.255804]
[1744268350147,0.00016611,82095.0,82094.0,0.37635782]
[1744268350365,0.00520267,82095.0,82094.0,0.37635782]
[1744268351710,0.00520267,82095.0,82094.0,0.42615782]
[1744268351946,0.00016611,82095.0,82094.0,0.48899867]
[1744268352188,0.00016611,82095.0,82094.0,0.52695918]
[1744268355595,7e-07,82097.0,82096.0,0.80843785]
[1744268355795,0.00042603,82097.0,82096.0,0.96695218]
[1744268356826,0.004,82129.0,82102.0,0.353878]
[1744268357033,0.004,82129.0,82102.0,0.52693318]
[1744268357279,4e-07,82103.0,82102.0,0.86693318]
[1744268357705,4e-07,82103.0,82102.0,1.28030686]
[1744268357865,0.004,82129.0,82107.0,0.695763]
[1744268358046,0.004,82129.0,82107.0,2.36103818]
[1744268360160,0.004,82129.0,82107.0,2.32307767]
[1744268360385,0.0001687,82128.0,82107.0,2.32307767]
[1744268360582,0.0001687,82128.0,82107.0,2.36086912]
[1744268361397,0.0001687,82128.0,82107.0,2.32307767]
[1744268361654,0.0001687,82128.0,82107.0,2.36085889]
[1744268362091,0.0001687,82128.0,82107.0,2.32307767]
[1744268362538,0.0001687,82128.0,82107.0,2.73645135]
[1744268363821,0.2437754,82127.0,82107.0,2.73645135]
[1744268364029,0.2436985,82126.0,82107.0,2.29645135]
[1744268364659,0.2436985,82126.0,82107.0,2.29641135]
[1744268364855,0.243543,82121.0,82107.0,2.24661135]
[1744268365056,0.24354,82122.0,82107.0,2.24661135]
[1744268365287,0.0475,82123.0,82107.0,2.2320705]
[1744268365428,0.291038,82123.0,82107.0,2.2320705]
[1744268365633,0.24354,82122.0,82107.0,2.2320705]
[1744268366337,0.291038,82123.0,82107.0,2.2320705]
[1744268366540,0.0475,82123.0,82107.0,2.2320705]
[1744268366740,0.012178,82115.0,82107.0,0.26095382]
[1744268366942,0.243562,82115.0,82107.0,0.27313282]
[1744268367365,0.012177,82118.0,82107.0,0.51671682]
[1744268367366,0.25573,82118.0,82107.0,0.51671682]
[1744268367566,0.012177,82117.0,82107.0,0.51671682]
[1744268367743,0.2437495,82108.0,82107.0,0.1404]
[1744268367949,0.2437495,82108.0,82107.0,0.383984]
[1744268367950,0.005579,82108.0,82107.0,0.383984]
[1744268368281,0.005579,82108.0,82107.0,0.396163]
[1744268368890,0.0001685,82108.0,82107.0,0.396163]
[1744268369095,0.00557542,82108.0,82107.0,0.396163]
[1744268369436,0.00554342,82108.0,82107.0,0.396163]
[1744268370759,0.24912442,82108.0,82107.0,0.1404]
[1744268370980,0.00554342,82108.0,82107.0,0.1404]
[1744268371187,0.24912442,82108.0,82107.0,0.1404]
[1744268372989,0.243605,82100.0,82098.0,0.243609]
[1744268373187,0.243608,82099.0,82098.0,0.12055382]
[1744268373390,0.24894736,82099.0,82098.0,0.12055382]
[1744268373593,0.00533936,82099.0,82098.0,0.12055382]
[1744268374781,0.24894736,82099.0,82098.0,0.26095382]
[1744268375427,0.00533936,82099.0,82098.0,0.26095382]
[1744268375635,0.00533936,82099.0,82098.0,0.50456482]
[1744268375810,0.00533936,82099.0,82098.0,0.51674482]
[1744268376211,0.243585,82107.0,82104.0,0.243592]
[1744268376459,0.243587,82106.0,82102.0,0.255775]
[1744268376620,0.243591,82105.0,82103.0,0.12055382]
[1744268376942,0.00528749,82104.0,82103.0,0.12055382]
[1744268378713,0.24888049,82104.0,82103.0,0.12055382]
[1744268379118,0.00528749,82104.0,82103.0,0.12055382]
[1744268379547,0.24888049,82104.0,82103.0,0.12055382]
[1744268386893,0.00528749,82104.0,82103.0,0.12055382]
[1744268387121,0.24888049,82104.0,82103.0,0.12055382]
[1744268387364,0.00528749,82104.0,82103.0,0.37632882]
[1744268387600,0.0033,82107.0,82106.0,0.243587]
[1744268387833,0.0033,82107.0,82106.0,0.36414082]
[1744268388078,0.00856093,82107.0,82106.0,0.36414082]
[1744268388303,0.00856093,82107.0,82106.0,0.12055382]
[1744268389050,0.25214493,82107.0,82106.0,0.12055382]
[1744268399587,0.00856093,82107.0,82106.0,0.12055382]
[1744268399808,0.00856093,82107.0,82106.0,0.36414082]
[1744268400388,0.00856093,82107.0,82106.0,0.12055382]
[1744268400589,0.00856093,82107.0,82106.0,0.36414082]
[1744268400791,0.00856093,82107.0,82106.0,0.12055382]
[1744268401049,0.00856093,82107.0,82106.0,0.36414082]
[1744268401192,0.00856093,82107.0,82106.0,0.6005812]
[1744268405055,0.00856093,82107.0,82106.0,0.4602212]
[1744268405259,0.00856093,82107.0,82106.0,0.6005812]
[1744268406143,0.25214493,82107.0,82106.0,0.1585552]
[1744268406426,0.25214493,82107.0,82106.0,0.26744412]
[1744268406643,0.26432393,82107.0,82106.0,0.10888892]
[1744268409527,0.00856093,82107.0,82106.0,0.48520874]
[1744268409947,0.00856093,82107.0,82106.0,0.37631982]
[1744268410351,0.00856093,82107.0,82106.0,0.41431177]
[1744268410570,0.00856093,82107.0,82106.0,0.37631982]
[1744268411117,0.00856093,82107.0,82106.0,0.4143122]
[1744268413766,0.00856093,82107.0,82106.0,0.47765305]
[1744268413995,0.00856093,82107.0,82106.0,0.52395305]
[1744268414602,0.00856093,82107.0,82106.0,0.66431305]
[1744268415279,0.00856093,82107.0,82106.0,0.52395305]
[1744268415509,0.00856093,82107.0,82106.0,0.66431305]
[1744268417790,0.0033,82107.0,82106.0,1.41768673]
[1744268417956,0.0001685,82125.0,82106.0,1.41768673]
[1744268417957,0.0001685,82125.0,82124.0,0.25571]
[1744268418163,0.0001685,82125.0,82124.0,2.67346526]
[1744268418364,0.0001685,82125.0,82124.0,2.683002]
[1744268418365,0.00029602,82125.0,82124.0,2.683002]
[1744268419399,6e-07,82129.0,82128.0,0.70533885]
[1744268419598,6e-07,82129.0,82128.0,0.86388505]
[1744268420271,6e-07,82129.0,82128.0,1.00424505]
[1744268421044,6e-07,82129.0,82128.0,1.41761873]
[1744268422666,6e-07,82129.0,82128.0,1.27725873]
[1744268422779,6e-07,82129.0,82128.0,1.41757873]
[1744268425402,6e-07,82129.0,82128.0,0.9299455]
[1744268427000,6e-07,82129.0,82128.0,0.51657182]
[1744268427736,6e-07,82129.0,82128.0,0.50439582]
[1744268427935,6e-07,82129.0,82128.0,0.26087382]
[1744268428136,0.2556946,82129.0,82128.0,0.14032]
[1744268428345,0.243546,82120.0,82119.0,0.14032]
[1744268428571,0.243546,82120.0,82119.0,0.26087382]
[1744268428572,0.25051235,82120.0,82119.0,0.26087382]
[1744268428989,0.25051235,82120.0,82114.0,0.012178]
[1744268428990,0.243566,82113.0,82109.0,0.00012752]
[1744268429192,0.00691398,82112.0,82111.0,0.243572]
[1744268429400,0.243558,82116.0,82111.0,0.36412582]
[1744268429603,0.243566,82114.0,82111.0,0.36412582]
[1744268429925,0.00685825,82113.0,82109.0,0.24370552]
[1744268430136,0.00685825,82113.0,82110.0,0.243573]
[1744268430368,0.00685825,82113.0,82110.0,0.255751]
[1744268430780,0.00685825,82113.0,82112.0,0.243569]
[1744268431012,0.255738,82115.0,82112.0,0.243569]
[1744268431182,0.00685301,82114.0,82112.0,0.243569]
[1744268432355,0.25041701,82114.0,82111.0,0.243572]
[1744268432611,0.25041701,82114.0,82110.0,0.255753]
[1744268433090,0.00685301,82114.0,82111.0,0.243569]
[1744268433337,0.00685301,82114.0,82109.0,0.12068134]
[1744268433573,0.25041601,82114.0,82111.0,0.243572]
[1744268434295,0.243571,82112.0,82109.0,0.12068134]
[1744268434526,0.243573,82111.0,82109.0,0.12068134]
[1744268434774,0.255753,82110.0,82109.0,0.00012752]
[1744268435239,0.26257982,82110.0,82109.0,0.00012752]
[1744268436557,0.30987982,82110.0,82109.0,0.00012752]
[1744268436999,0.303053,82110.0,82109.0,0.00012752]
[1744268438341,0.703053,82110.0,82109.0,0.00012752]
[1744268439557,0.01208201,82120.0,82109.0,0.00012752]
[1744268439766,0.01208201,82120.0,82119.0,0.255725]
[1744268439994,6e-07,82129.0,82126.0,0.012176]
[1744268440270,6e-07,82129.0,82128.0,0.255698]
[1744268440487,6e-07,82129.0,82128.0,0.3786868]
[1744268440709,6e-07,82129.0,82128.0,0.37625182]
[1744268441720,6e-07,82129.0,82128.0,0.51681182]
[1744268442180,0.00688094,82129.0,82128.0,0.51681182]
[1744268442383,6e-07,82129.0,82128.0,0.51681182]
[1744268443308,0.0068626,82129.0,82128.0,0.51681182]
[1744268443534,0.2556946,82129.0,82128.0,0.14056]
[1744268443733,0.00686259,82129.0,82128.0,0.14056]
[1744268443990,0.25038159,82129.0,82128.0,0.14056]
[1744268444226,0.2556946,82129.0,82128.0,0.14056]
[1744268444457,0.66250553,82129.0,82128.0,0.14056]
[1744268445469,0.255698,82128.0,82125.0,0.243529]
[1744268445758,0.243525,82127.0,82124.0,0.243531]
[1744268446201,0.243525,82127.0,82122.0,0.255714]
[1744268446202,0.243529,82126.0,82122.0,0.255714]
[1744268446646,0.243536,82124.0,82120.0,0.243543]
[1744268447102,0.243531,82125.0,82122.0,0.243539]
[1744268447306,0.255701,82128.0,82125.0,0.243531]
[1744268447479,0.255691,82130.0,82125.0,0.243531]
[1744268447704,0.4000006,82129.0,82128.0,0.255698]
[1744268448144,6e-07,82129.0,82128.0,0.255698]
[1744268448296,6e-07,82129.0,82128.0,0.37625182]
[1744268455290,6e-07,82129.0,82128.0,0.42205182]
[1744268455491,6e-07,82129.0,82128.0,0.43659267]
[1744268456076,6e-07,82129.0,82128.0,0.45930394]
[1744268456921,6e-07,82129.0,82128.0,0.39896309]
[1744268458064,6e-07,82129.0,82128.0,0.41350394]
[1744268459914,6e-07,82129.0,82128.0,0.15544109]
[1744268460132,6e-07,82129.0,82128.0,0.39896309]
[1744268464295,6e-07,82129.0,82128.0,0.41350394]
[1744268465327,6e-07,82129.0,82128.0,0.45135248]
[1744268465967,6e-07,82129.0,82128.0,1.05912616]
[1744268469130,6e-07,82129.0,82128.0,1.0704926]
[1744268469945,6e-07,82129.0,82128.0,1.08253935]
[1744268470149,0.0001686,82137.0,82136.0,0.255672]
[1744268470356,0.0001686,82137.0,82136.0,0.43104945]
[1744268470546,0.0001686,82137.0,82136.0,0.42861521]
[1744268470689,0.0001686,82137.0,82136.0,0.45132648]
[1744268470909,0.0001686,82137.0,82136.0,0.8760666]
[1744268471560,0.0001686,82137.0,82136.0,0.9257666]
[1744268472400,4e-07,82141.0,82140.0,0.25566]
[1744268472583,1e-07,82143.0,82142.0,0.27019485]
[1744268472785,1e-07,82159.0,82158.0,0.255604]
[1744268473001,0.00012762,82159.0,82158.0,0.68080727]
[1744268473224,0.00012762,82159.0,82158.0,0.70108492]
[1744268474924,0.00012762,82159.0,82158.0,0.65138492]
[1744268475535,0.00012762,82159.0,82158.0,0.61353638]
[1744268475700,0.00012762,82159.0,82158.0,0.56533638]
[1744268475992,0.00012762,82159.0,82158.0,0.6031526]
[1744268476153,0.00012762,82159.0,82158.0,0.56533638]
[1744268476364,0.00012762,82159.0,82158.0,0.55396994]
[1744268476884,0.00012762,82159.0,82158.0,0.96734362]
[1744268477600,0.00012762,82159.0,82158.0,0.95280277]
[1744268478068,0.00012762,82159.0,82158.0,0.28382509]
[1744268478549,0.00502018,82159.0,82158.0,0.53942909]
[1744268478926,0.00502018,82159.0,82158.0,0.52725809]
[1744268479156,0.00502018,82159.0,82158.0,0.53942909]
[1744268479605,0.00502018,82159.0,82158.0,0.02271127]
[1744268479818,0.30782118,82159.0,82158.0,0.02271127]
[1744268480025,0.30782118,82159.0,82147.0,0.383983]
[1744268480026,0.243448,82153.0,82150.0,0.02271127]
[1744268480232,0.243454,82151.0,82148.0,0.02271127]
[1744268480417,0.243454,82151.0,82149.0,0.12055382]
[1744268480418,0.00484627,82150.0,82149.0,0.12055382]
[1744268480622,0.24830327,82150.0,82149.0,0.12055382]
[1744268480897,0.255633,82149.0,82148.0,0.02271127]
[1744268481129,0.302333,82149.0,82148.0,0.02271127]
[1744268481355,0.3071517,82149.0,82148.0,0.02271127]
[1744268481585,0.012174,82138.0,82134.0,0.02271127]
[1744268481813,0.243485,82141.0,82136.0,0.02271127]
[1744268482013,0.0467,82149.0,82143.0,0.012173]
[1744268482217,0.302334,82149.0,82143.0,0.012173]
[1744268482438,0.243466,82147.0,82143.0,0.012173]
[1744268482638,0.24347,82146.0,82143.0,0.255649]
[1744268482848,0.24347,82146.0,82143.0,0.243476]
[1744268483053,0.243473,82145.0,82141.0,0.27836627]
[1744268483260,0.24337214,82145.0,82142.0,0.24348]
[1744268483372,0.24337214,82145.0,82142.0,0.26619127]
[1744268483831,0.243476,82144.0,82142.0,0.02271127]
[1744268484236,0.243469,82146.0,82142.0,0.243479]
[1744268484445,0.243469,82146.0,82141.0,0.27836827]
[1744268484737,0.243472,82145.0,82141.0,0.27836827]
[1744268485083,0.243472,82145.0,82142.0,0.243479]
[1744268485971,0.243472,82145.0,82143.0,0.02271127]
[1744268487510,0.243469,82146.0,82143.0,0.26618827]
[1744268487650,0.243472,82145.0,82143.0,0.02271127]
[1744268488017,0.4,82144.0,82143.0,0.02271127]
[1744268488548,0.4,82144.0,82143.0,0.26618827]
[1744268488986,0.4,82144.0,82143.0,0.38674209]
[1744268489188,0.4,82144.0,82143.0,0.39891509]
[1744268489395,0.04732762,82159.0,82150.0,0.255626]
[1744268489609,0.24344,82156.0,82153.0,0.243447]
[1744268490043,0.255604,82158.0,82154.0,0.243444]
[1744268490250,0.255604,82158.0,82154.0,0.26615527]
[1744268490460,0.243433,82158.0,82154.0,0.26615527]
[1744268490664,0.34,82158.0,82156.0,0.243436]
[1744268490884,0.00012762,82159.0,82158.0,0.255604]
[1744268491127,0.00012762,82159.0,82158.0,0.37615782]
[1744268491366,0.00012762,82159.0,82158.0,0.39886909]
[1744268497138,0.00012762,82159.0,82158.0,0.41022551]
[1744268497626,0.00503098,82159.0,82158.0,0.41022551]
[1744268497858,0.00012762,82159.0,82158.0,0.41022551]
[1744268499107,0.00012762,82159.0,82158.0,0.42476636]
[1744268499340,0.00012762,82159.0,82158.0,0.51796636]
[1744268499573,0.00012762,82159.0,82158.0,0.55582026]
[1744268500315,0.00012762,82159.0,82158.0,1.06919394]
[1744268503123,0.00012762,82159.0,82158.0,0.86145309]
[1744268503333,0.00012762,82159.0,82158.0,1.00385309]
[1744268503544,0.00012762,82159.0,82158.0,0.82359919]
[1744268503757,0.00012762,82159.0,82158.0,0.96599919]
[1744268505579,0.00012762,82159.0,82158.0,0.82359919]
[1744268505785,0.00012762,82159.0,82158.0,0.96599919]
[1744268506168,0.00012762,82159.0,82158.0,0.55262551]
[1744268506490,0.00012762,82159.0,82158.0,1.02854004]
[1744268506721,0.0001686,82160.0,82158.0,1.02854004]
[1744268506722,2.2e-07,82160.0,82159.0,0.27014185]
[1744268506930,2.2e-07,82160.0,82159.0,0.80406935]
[1744268507143,2.2e-07,82160.0,82159.0,0.85325636]
[1744268507374,2.2e-07,82160.0,82159.0,0.87596763]
[1744268511796,0.0001686,82187.0,82175.0,0.31809285]
[1744268511997,0.0001686,82187.0,82175.0,0.61887726]
[1744268512222,0.0001686,82187.0,82175.0,0.63023368]
[1744268512428,0.0001686,82187.0,82175.0,0.65294495]
[1744268512978,0.0001686,82187.0,82175.0,0.64158853]
[1744268513177,0.0001686,82187.0,82175.0,0.49918853]
[1744268513371,0.0001686,82187.0,82175.0,0.64158853]
[1744268514635,0.0001686,82187.0,82175.0,0.65291168]
[1744268515113,0.0001686,82187.0,82175.0,0.98045477]
[1744268515542,0.0001686,82187.0,82175.0,0.98041477]
[1744268517498,0.0464,82183.0,82175.0,0.41014024]
[1744268518490,0.243352,82186.0,82175.0,0.41014024]
[1744268518715,0.2435176,82187.0,82175.0,0.41014024]
[1744268518915,0.2435176,82187.0,82175.0,0.42468109]
[1744268518916,0.0001686,82187.0,82175.0,0.42468109]
[1744268519118,0.0001686,82187.0,82175.0,0.56704109]
[1744268520204,0.243359,82184.0,82175.0,0.55250024]
[1744268520415,0.24335,82186.0,82175.0,0.55250024]
[1744268520665,0.243367,82181.0,82175.0,0.55250024]
[1744268520830,0.012167,82186.0,82175.0,0.55250024]
[1744268521045,0.243362,82183.0,82175.0,0.55250024]
[1744268521250,0.243363,82182.0,82175.0,0.29694824]
[1744268521456,0.243363,82182.0,82175.0,0.55250024]
[1744268521655,0.2558297,82179.0,82175.0,0.55250024]
[1744268522033,0.290277,82177.0,82175.0,0.29694824]
[1744268522230,0.0469,82177.0,82175.0,0.29694824]
[1744268522412,0.2435487,82176.0,82175.0,0.15458824]
[1744268522611,0.2557177,82176.0,82175.0,0.03403442]
[1744268523259,0.3021177,82176.0,82175.0,0.02271127]
[1744268524304,0.0465687,82176.0,82175.0,0.02271127]
[1744268525549,0.0001687,82176.0,82175.0,0.03407066]
[1744268525752,0.0001687,82176.0,82175.0,0.27745366]
[1744268526556,0.0001687,82176.0,82175.0,0.41017648]
[1744268527967,0.0001687,82176.0,82175.0,0.42471733]
[1744268528428,0.0001687,82176.0,82175.0,0.46257942]
[1744268534239,0.0001687,82176.0,82175.0,0.44803857]
[1744268535519,0.0001687,82176.0,82175.0,0.43667918]
[1744268537570,0.0001687,82176.0,82175.0,0.39881709]
[1744268537795,0.0001687,82176.0,82175.0,0.41018501]
[1744268540331,0.0001687,82176.0,82175.0,0.39881709]
[1744268544767,0.2435487,82176.0,82175.0,0.14326509]
[1744268545207,0.0001687,82176.0,82175.0,0.38664809]
[1744268545429,0.0001687,82176.0,82175.0,0.14326509]
[1744268545608,0.2435487,82176.0,82175.0,0.14326509]
[1744268545817,0.0001687,82176.0,82175.0,0.14326509]
[1744268546146,0.2435487,82176.0,82175.0,0.14326509]
[1744268546365,0.0001687,82176.0,82175.0,0.14326509]
[1744268546782,0.2435487,82176.0,82175.0,0.14326509]
[1744268548197,0.2557177,82176.0,82175.0,0.14326509]
[1744268548675,0.3017177,82176.0,82175.0,0.14326509]
[1744268548832,0.3017177,82176.0,82175.0,0.02271127]
[1744268549042,0.2895487,82176.0,82175.0,0.02271127]
[1744268549383,0.3017177,82176.0,82175.0,0.02271127]
[1744268551135,0.7147677,82176.0,82175.0,0.02271127]
[1744268551337,0.749803,82176.0,82175.0,0.02271127]
[1744268551542,0.7147677,82176.0,82175.0,0.02271127]
[1744268551927,0.255595,82161.0,82158.0,0.14276]
[1744268552043,0.255595,82161.0,82153.0,0.243445]
[1744268552470,0.255595,82161.0,82160.0,0.13157994]
[1744268552870,0.012169,82175.0,82167.0,0.01217]
[1744268553078,0.012169,82175.0,82166.0,0.243408]
[1744268553079,0.2434,82170.0,82166.0,0.243408]
[1744268553280,0.4123377,82176.0,82170.0,0.243397]
[1744268553533,0.4123377,82176.0,82167.0,0.14330263]
[1744268553534,0.4001687,82176.0,82171.0,0.12055382]
[1744268553739,0.243383,82175.0,82172.0,0.02274881]
[1744268553959,0.243383,82175.0,82173.0,0.02274881]
[1744268555126,0.243389,82173.0,82172.0,0.02274354]
[1744268555338,0.255555,82174.0,82172.0,0.02274354]
[1744268555715,0.243386,82174.0,82173.0,0.02274354]
[1744268556140,0.0001687,82176.0,82175.0,0.243383]
[1744268556282,0.0001687,82176.0,82175.0,0.37610582]
[1744268556481,0.0001687,82176.0,82175.0,0.39884936]
[1744268556694,0.0001687,82176.0,82175.0,0.14329736]
[1744268556876,0.0001687,82176.0,82175.0,0.38668036]
[1744268557284,0.0001687,82176.0,82175.0,0.14329736]
[1744268557762,0.2435487,82176.0,82175.0,0.14329736]
[1744268558106,0.3017177,82176.0,82175.0,0.02274354]
[1744268558318,0.7620677,82176.0,82175.0,0.02274354]
[1744268558668,0.243433,82158.0,82154.0,0.243444]
[1744268558869,0.243429,82160.0,82155.0,0.38673531]
[1744268559073,0.243435,82158.0,82155.0,0.38673531]
[1744268559301,0.243435,82158.0,82156.0,0.02274049]
[1744268559509,0.243435,82158.0,82157.0,0.12055382]
[1744268560117,0.243435,82158.0,82157.0,0.14329431]
[1744268561130,0.255606,82158.0,82157.0,0.14329431]
[1744268561321,0.255606,82158.0,82157.0,0.02274049]
[1744268561725,0.715356,82158.0,82157.0,0.02274049]
[1744268561925,0.72743887,82158.0,82155.0,0.10883113]
[1744268562135,0.32866,82156.0,82155.0,0.10883113]
[1744268562726,0.66866,82156.0,82155.0,0.10883113]
[1744268563056,1.06866,82156.0,82155.0,0.10883113]
[1744268563510,0.716489,82156.0,82155.0,0.10883113]
[1744268563711,0.72866,82156.0,82155.0,0.10883113]
[1744268564845,0.243477,82144.0,82141.0,0.26622349]
[1744268565075,0.243477,82143.0,82142.0,0.12055382]
[1744268565391,0.243477,82144.0,82142.0,0.12055382]
[1744268565643,0.243477,82143.0,82142.0,0.12055382]
[1744268566631,0.255657,82141.0,82140.0,0.00012752]
[1744268571936,0.655657,82141.0,82140.0,0.00012752]
[1744268572555,0.995657,82141.0,82140.0,0.00012752]
[1744268575979,1.044357,82141.0,82140.0,0.00012752]
[1744268576328,1.117407,82141.0,82140.0,0.00012752]
[1744268577142,1.317407,82141.0,82140.0,0.00012752]
[1744268579064,1.117407,82141.0,82140.0,0.00012752]
[1744268579263,1.23796082,82141.0,82140.0,0.00012752]
[1744268579881,1.28376082,82141.0,82140.0,0.00012752]
[1744268580086,1.48876082,82141.0,82140.0,0.00012752]
[1744268580311,1.48876082,82141.0,82140.0,5.2e-07]
[1744268581087,1.62616082,82141.0,82140.0,5.2e-07]
[1744268581838,1.63316082,82141.0,82140.0,5.2e-07]
[1744268582270,1.63916082,82141.0,82140.0,5.2e-07]
[1744268585230,1.64416082,82141.0,82140.0,5.2e-07]
[1744268585868,1.69416082,82141.0,82140.0,5.2e-07]
[1744268586949,1.83680167,82141.0,82140.0,5.2e-07]
[1744268587368,1.83180167,82141.0,82140.0,5.2e-07]
[1744268587592,1.69416082,82141.0,82140.0,5.2e-07]
[1744268588039,1.54676082,82141.0,82140.0,5.2e-07]
[1744268588247,1.68908082,82141.0,82140.0,5.2e-07]
[1744268589235,1.63908082,82141.0,82140.0,5.2e-07]
[1744268589439,1.68908082,82141.0,82140.0,5.2e-07]
[1744268589648,1.63908082,82141.0,82140.0,5.2e-07]
[1744268589862,1.68908082,82141.0,82140.0,5.2e-07]
[1744268590082,1.63908082,82141.0,82140.0,5.2e-07]
[1744268590763,1.084027,82141.0,82140.0,5.2e-07]
[1744268590969,1.424027,82141.0,82140.0,5.2e-07]
[1744268591172,1.224027,82141.0,82140.0,5.2e-07]
[1744268596452,1.150977,82141.0,82140.0,5.2e-07]
[1744268597192,1.39448082,82141.0,82140.0,5.2e-07]
[1744268597398,1.51491341,82141.0,82140.0,5.2e-07]